fUSD/lending_fUSD_20250630
["ID","MTS","AMOUNT","RATE_DAILY","PERIOD"]
[368699169,1751307063243,191.28,0.00012619,2]
[368699170,1751307101143,200.0,0.00012619,2]
[368699171,1751307193045,186.86,0.00012554,2]
[368699172,1751307217516,200.0,0.00012555,7]
[368699173,1751307225382,209.12,0.00012531,2]
[368699175,1751307345711,189.53,0.00013075,2]
[368699176,1751307403507,200.93342416,0.0001301,2]
[368699177,1751307406458,217.1,0.00012602,2]
[368699178,1751307412503,1000.0,0.00012602,2]
[368699179,1751307446885,150.5,0.0002609,120]
[368699180,1751307447166,150.5,0.0002608,120]
[368699181,1751307447511,150.5,0.0002607,120]
[368699185,1751307531513,209.57043349,0.00013038,2]
[368699186,1751307541414,150.0,0.00012396,2]
[368699187,1751307554160,165.1,0.00012397,2]
[368699188,1751307577606,150.0,0.00012397,2]
[368699193,1751307583475,6803.35,0.00012401,2]
[368699195,1751307620904,968.59,0.00012394,2]
[368699197,1751307652896,168.57,9.888e-05,2]
[368699198,1751307653039,168.57,0.00011124,2]
[368699199,1751307653229,168.57,0.0001236,2]
[368699200,1751307721778,2028.93,0.00012344,2]
[368699201,1751307809523,600.0,0.00015681,120]
[368699202,1751307810538,600.0,0.00015681,120]
[368699203,1751307811088,600.0,0.00015681,120]
[368699204,1751307813480,341.79,0.00015681,120]
[368699205,1751307814447,600.0,0.00015681,120]
[368699206,1751307815147,600.0,0.00015681,120]
[368699207,1751307816744,600.0,0.00015681,120]
[368699208,1751307817584,341.79,0.00015681,120]
[368699209,1751307818841,600.0,0.00015681,120]
[368699210,1751307819421,600.0,0.00015681,120]
[368699211,1751307820137,600.0,0.00015681,120]
[368699212,1751307821712,341.79,0.00015681,120]
[368699213,1751307823195,600.0,0.00015681,120]
[368699214,1751307823851,600.0,0.00015681,120]
[368699215,1751307825083,600.0,0.00015681,120]
[368699216,1751307827474,341.79,0.00015681,120]
[368699217,1751307828103,600.0,0.00015681,120]
[368699218,1751307828713,600.0,0.00015681,120]
[368699219,1751307829476,600.0,0.00015681,120]
[368699220,1751307830835,341.79,0.00015681,120]
[368699221,1751307832442,600.0,0.00015681,120]
[368699222,1751307833064,600.0,0.00015681,120]
[368699223,1751307833571,600.0,0.00015681,120]
[368699224,1751307836142,341.79,0.00015681,120]
[368699225,1751307838657,600.0,0.00015681,120]
[368699226,1751307839740,600.0,0.00015681,120]
[368699227,1751307840099,600.0,0.00015681,120]
[368699228,1751307841574,341.79,0.00015681,120]
[368699229,1751307842453,600.0,0.000157,120]
[368699230,1751307843177,600.0,0.000157,120]
[368699231,1751307843890,600.0,0.000157,120]
[368699232,1751307847748,341.79,0.000157,120]
[368699233,1751307849729,600.0,0.000157,120]
[368699234,1751307850226,600.0,0.000157,120]
[368699235,1751307850545,600.0,0.000157,120]
[368699236,1751307852090,341.79,0.000157,120]
[368699237,1751307853174,600.0,0.000157,120]
[368699238,1751307853844,600.0,0.000157,120]
[368699239,1751307855329,600.0,0.000157,120]
[368699240,1751307856808,341.79,0.000157,120]
[368699241,1751307859586,600.0,0.000157,120]
[368699242,1751307860677,600.0,0.000157,120]
[368699243,1751307861086,600.0,0.000157,120]
[368699244,1751307862576,341.79,0.000157,120]
[368699245,1751307863852,600.0,0.000157,120]
[368699246,1751307865057,600.0,0.000157,120]
[368699247,1751307865465,600.0,0.000157,120]
[368699248,1751307866761,341.79,0.000157,120]
[368699249,1751307868375,600.0,0.000157,120]
[368699250,1751307869228,600.0,0.000157,120]
[368699251,1751307870034,600.0,0.000157,120]
[368699252,1751307871113,341.79,0.000157,120]
[368699253,1751307872336,600.0,0.000157,120]
[368699254,1751307873063,600.0,0.000157,120]
[368699255,1751307873795,600.0,0.000157,120]
[368699256,1751307875560,341.79,0.000157,120]
[368699257,1751307876631,600.0,0.0002,120]
[368699258,1751307877889,600.0,0.0002,120]
[368699259,1751307878435,600.0,0.0002,120]
[368699260,1751307881129,341.79,0.0002,120]
[368699261,1751307881964,600.0,0.0002,120]
[368699262,1751307882546,600.0,0.0002,120]
[368699263,1751307883280,600.0,0.0002,120]
[368699264,1751307885101,341.79,0.0002,120]
[368699265,1751307887788,600.0,0.0002,120]
[368699266,1751307888330,600.0,0.0002,120]
[368699267,1751307889009,600.0,0.0002,120]
[368699268,1751307891755,341.79,0.0002,120]
[368699269,1751307893012,600.0,0.0002,120]
[368699270,1751307894018,600.0,0.0002,120]
[368699271,1751307894569,600.0,0.0002,120]
[368699272,1751307895907,341.79,0.0002,120]
[368699273,1751307897476,600.0,0.0002,120]
[368699274,1751307897954,600.0,0.0002,120]
[368699275,1751307898970,600.0,0.0002,120]
[368699276,1751307900769,341.79,0.0002,120]
[368699277,1751307904360,600.0,0.0002,120]
[368699278,1751307905096,600.0,0.0002,120]
[368699279,1751307906288,600.0,0.0002,120]
[368699280,1751307907814,341.79,0.0002,120]
[368699281,1751307909929,600.0,0.000157,120]
[368699282,1751307910617,600.0,0.000157,120]
[368699283,1751307911398,600.0,0.000157,120]
[368699284,1751307913997,341.79,0.000157,120]
[368699285,1751307915307,600.0,0.000157,120]
[368699286,1751307915873,600.0,0.000157,120]
[368699287,1751307916611,600.0,0.000157,120]
[368699288,1751307918939,341.79,0.000157,120]
[368699289,1751307920446,600.0,0.000157,120]
[368699290,1751307921376,600.0,0.000157,120]
[368699291,1751307921835,600.0,0.000157,120]
[368699292,1751307923945,341.79,0.000157,120]
[368699293,1751307925158,250.0,0.00012335,2]
[368699294,1751307925480,600.0,0.000157,120]
[368699295,1751307926149,600.0,0.000157,120]
[368699296,1751307926582,600.0,0.000157,120]
[368699297,1751307928478,341.87952521,0.000157,120]
[368699298,1751307953210,361.21,0.00012335,2]
[368699299,1751307966559,328.68,0.00012335,2]
[368699300,1751307966723,328.68,0.00012338,2]
[368699301,1751307966910,328.68,0.00012341,2]
[368699302,1751307967526,328.68,0.00012345,2]
[368699303,1751307967673,328.68,0.00012348,2]
[368699304,1751307967925,328.68,0.00012351,2]
[368699305,1751307968065,328.68,0.00012354,2]
[368699306,1751307968282,328.68,0.00012357,2]
[368699307,1751307968685,328.68,0.00012361,2]
[368699308,1751307968929,328.68,0.00012364,2]
[368699309,1751307969084,328.68,0.00012367,2]
[368699310,1751307969231,328.68,0.0001237,2]
[368699311,1751307969354,328.68,0.00012374,2]
[368699312,1751307969426,328.68,0.00012377,2]
[368699313,1751307969570,328.68,0.0001238,2]
[368699314,1751307970490,328.68,0.00012383,2]
[368699315,1751307971162,328.68,0.00012387,2]
[368699316,1751307971625,328.68,0.0001239,2]
[368699317,1751307971809,328.68,0.00012393,2]
[368699318,1751307972049,328.68,0.00012396,2]
[368699319,1751308019028,537.0,0.0001217,2]
[368699330,1751308065831,173.82512826,0.00013098,2]
[368699331,1751308070609,167.38,0.00012712,2]
[368699338,1751308129078,200.0,0.00012347,2]
[368699570,1751308219398,184.2,0.00012341,2]
[368699571,1751308220046,184.2,0.00013026,2]
[368699576,1751308231873,-173.82512826,0.00013118,2]
[368699577,1751308231883,-300.0,0.00013198,2]
[368699578,1751308231894,-1200.0,0.00013198,2]
[368699579,1751308231903,-4727.45,0.00013199,2]
[368699580,1751308231913,-9999.99,0.00013199,2]
[368699581,1751308231924,-4124.17,0.00013199,2]
[368699582,1751308231933,-150.0,0.00013202,2]
[368699583,1751308231942,-754.4655,0.00013205,2]
[368699584,1751308231951,-150.0,0.00013207,2]
[368699585,1751308231960,-207.4,0.0001321,2]
[368699586,1751308231969,-502.409754,0.0001321,2]
[368699587,1751308231979,-151.0,0.0001321,2]
[368699588,1751308231988,-151.0,0.0001321,2]
[368699589,1751308231997,-151.0,0.0001321,2]
[368699590,1751308232009,-151.0,0.0001321,2]
[368699591,1751308232019,-151.0,0.0001321,2]
[368699592,1751308232029,-151.0,0.0001321,2]
[368699593,1751308232039,-151.0,0.0001321,2]
[368699594,1751308232048,-151.0,0.0001321,2]
[368699595,1751308232057,-151.0,0.0001321,2]
[368699596,1751308232067,-151.0,0.0001321,2]
[368699597,1751308232077,-151.0,0.0001321,2]
[368699598,1751308232087,-151.0,0.0001321,2]
[368699599,1751308232096,-151.0,0.0001321,2]
[368699600,1751308232105,-151.0,0.0001321,2]
[368699601,1751308232115,-151.0,0.0001321,2]
[368699602,1751308232126,-151.0,0.0001321,2]
[368699603,1751308232136,-151.0,0.0001321,2]
[368699604,1751308232145,-151.0,0.0001321,2]
[368699605,1751308232155,-151.0,0.0001321,2]
[368699606,1751308232166,-151.0,0.0001321,2]
[368699607,1751308232177,-214.87561765,0.00013212,2]
[368699608,1751308232187,-618.22587039,0.00013216,2]
[368699609,1751308232198,-150.0,0.00013218,2]
[368699610,1751308232207,-11590.95,0.00013218,2]
[368699611,1751308232218,-1694.75,0.00013218,2]
[368699612,1751308232227,-4269.8281297,0.00013218,2]
[368699613,1751308232239,-4778.66276081,0.00013218,2]
[368699614,1751308232272,-3877.51910949,0.00013218,2]
[368699615,1751308232282,-3694.04,0.00013218,2]
[368699617,1751308232291,-150.99,0.00013218,2]
[368699620,1751308232301,-15107.88,0.00013218,2]
[368699622,1751308232311,-150.99,0.00013218,2]
[368699624,1751308232319,-1553.69,0.00013218,2]
[368699625,1751308232329,-150.0,0.00013219,2]
[368699626,1751308232339,-1000.0,0.00013221,2]
[368699627,1751308232348,-150.0,0.00013222,2]
[368699628,1751308232358,-150.0,0.00013224,2]
[368699629,1751308232368,-150.0,0.00013224,2]
[368699630,1751308232377,-150.0,0.00013225,2]
[368699631,1751308232387,-115.27734025,0.00013227,2]
[368699632,1751308232398,-34.72265975,0.00013227,2]
[368699633,1751308232408,-150.0,0.00013228,2]
[368699634,1751308232418,-150.0,0.00013231,2]
[368699635,1751308232427,-150.0,0.00013233,2]
[368699636,1751308232439,-150.0,0.00013236,2]
[368699637,1751308232448,-150.0,0.00013242,2]
[368699638,1751308232457,-150.0,0.00013243,2]
[368699639,1751308232468,-150.0,0.00013244,2]
[368699640,1751308232478,-150.0,0.00013245,2]
[368699641,1751308232488,-150.0,0.00013249,2]
[368699642,1751308232498,-150.0,0.00013251,2]
[368699643,1751308232508,-150.0,0.00013251,2]
[368699644,1751308232523,-150.0,0.00013255,2]
[368699645,1751308232533,-150.0,0.00013257,2]
[368699646,1751308232543,-150.0,0.00013265,2]
[368699647,1751308232553,-150.0,0.00013265,2]
[368699648,1751308232563,-150.0,0.00013266,2]
[368699649,1751308232573,-150.0,0.00013266,2]
[368699650,1751308232582,-150.0,0.00013267,2]
[368699651,1751308232592,-150.0,0.0001327,2]
[368699652,1751308232603,-150.0,0.00013275,2]
[368699653,1751308232613,-150.0,0.0001328,2]
[368699654,1751308232623,-500.0,0.0001328,2]
[368699655,1751308232633,-150.0,0.0001328,2]
[368699656,1751308232643,-500.0,0.0001328,2]
[368699657,1751308232653,-3267.0,0.0001328,2]
[368699658,1751308232665,-150.0,0.0001328,2]
[368699659,1751308232676,-507.0,0.0001328,2]
[368699660,1751308232687,-150.0,0.00013282,2]
[368699661,1751308232696,-150.0,0.00013285,2]
[368699662,1751308232706,-150.0,0.00013286,2]
[368699663,1751308232715,-500.0,0.00013287,2]
[368699664,1751308232725,-201.27880672,0.00013287,2]
[368699665,1751308232734,-500.0,0.00013287,2]
[368699666,1751308232744,-150.0,0.00013289,2]
[368699667,1751308232754,-150.0,0.00013291,2]
[368699668,1751308232763,-150.0,0.00013294,2]
[368699669,1751308232773,-150.0,0.00013295,2]
[368699670,1751308232782,-150.0,0.00013299,2]
[368699671,1751308232791,-150.0,0.00013302,2]
[368699672,1751308232801,-150.0,0.00013317,2]
[368699673,1751308232811,-150.0,0.00013318,2]
[368699674,1751308232820,-150.0,0.00013319,2]
[368699675,1751308232829,-150.0,0.00013319,2]
[368699676,1751308232838,-150.0,0.00013319,2]
[368699677,1751308232847,-150.0,0.00013321,2]
[368699678,1751308232857,-150.0,0.00013326,2]
[368699679,1751308232866,-150.0,0.0001333,2]
[368699680,1751308232875,-150.0,0.00013333,2]
[368699681,1751308232886,-222.0,0.0001334,2]
[368699682,1751308232896,-286.0,0.0001334,2]
[368699683,1751308232905,-150.0,0.00013343,2]
[368699684,1751308232915,-150.0,0.00013346,2]
[368699685,1751308232924,-150.0,0.00013346,2]
[368699686,1751308232934,-150.0,0.00013348,2]
[368699687,1751308232943,-150.0,0.00013352,2]
[368699688,1751308232952,-424.0174,0.0001336,2]
[368699689,1751308232962,-1300.22766,0.0001336,2]
[368699690,1751308232972,-150.0,0.00013361,2]
[368699691,1751308232982,-150.0,0.00013361,2]
[368699692,1751308232991,-150.0,0.00013365,2]
[368699693,1751308233001,-150.0,0.00013366,2]
[368699694,1751308233010,-150.0,0.00013366,2]
[368699695,1751308233020,-150.0,0.00013368,2]
[368699696,1751308233029,-150.0,0.00013369,2]
[368699697,1751308233039,-150.0,0.00013372,2]
[368699698,1751308233049,-150.0,0.00013373,2]
[368699699,1751308233058,-150.0,0.00013374,2]
[368699700,1751308233068,-1000.0,0.00013374,2]
[368699701,1751308233078,-150.0,0.00013375,2]
[368699702,1751308233087,-150.0,0.00013377,2]
[368699703,1751308233096,-150.0,0.00013377,2]
[368699704,1751308233106,-150.0,0.00013377,2]
[368699705,1751308233116,-150.0,0.00013378,2]
[368699706,1751308233126,-150.0,0.00013379,2]
[368699707,1751308233135,-1000.0,0.0001338,2]
[368699708,1751308233145,-150.0,0.00013385,2]
[368699709,1751308233154,-150.0,0.00013386,2]
[368699710,1751308233164,-150.0,0.0001339,2]
[368699711,1751308233174,-150.0,0.00013392,2]
[368699712,1751308233184,-150.0,0.00013392,2]
[368699713,1751308233194,-150.0,0.00013393,2]
[368699714,1751308233203,-150.0,0.00013395,2]
[368699715,1751308233213,-150.0,0.00013396,2]
[368699716,1751308233223,-150.0,0.00013397,2]
[368699717,1751308233233,-150.0,0.000134,2]
[368699718,1751308233243,-415.23351092,0.000134,2]
[368699719,1751308233252,-10823.7018,0.000134,2]
[368699720,1751308233262,-183.08622295,0.000134,2]
[368699721,1751308233272,-1000.0,0.000134,2]
[368699722,1751308233282,-150.0,0.00013401,2]
[368699723,1751308233293,-1000.0,0.00013404,2]
[368699724,1751308233302,-150.0,0.00013408,2]
[368699725,1751308233312,-150.0,0.0001341,2]
[368699726,1751308233322,-150.0,0.00013411,2]
[368699727,1751308233331,-167.38,0.00013412,2]
[368699728,1751308233342,-150.0,0.00013418,2]
[368699729,1751308233352,-150.0,0.00013424,2]
[368699730,1751308233362,-150.0,0.00013425,2]
[368699731,1751308233707,-212.10520069,0.00013426,2]
[368699732,1751308233720,-150.0,0.00013427,2]
[368699733,1751308233729,-150.0,0.00013428,2]
[368699734,1751308233739,-5000.0,0.00013431,2]
[368699735,1751308233749,-150.0,0.00013431,2]
[368699736,1751308233759,-150.0,0.00013432,2]
[368699737,1751308233770,-150.0,0.00013437,2]
[368699738,1751308233780,-150.0,0.00013439,2]
[368699739,1751308233789,-150.0,0.0001344,2]
[368699740,1751308233799,-150.0,0.00013441,2]
[368699741,1751308233809,-150.0,0.00013441,2]
[368699742,1751308233819,-150.0,0.00013444,2]
[368699743,1751308233829,-150.0,0.00013445,2]
[368699744,1751308233839,-150.0,0.00013446,2]
[368699745,1751308233850,-1630.4963056,0.00013448,2]
[368699746,1751308233860,-150.0,0.00013451,2]
[368699747,1751308233870,-150.0,0.00013453,2]
[368699748,1751308233879,-150.0,0.00013454,2]
[368699749,1751308233889,-415.23351084,0.00013456,2]
[368699750,1751308233900,-150.0,0.00013456,2]
[368699751,1751308233909,-1000.0,0.00013461,2]
[368699752,1751308233919,-150.0,0.00013465,2]
[368699753,1751308233929,-150.0,0.00013468,2]
[368699754,1751308233938,-150.0,0.00013469,2]
[368699755,1751308233948,-150.0,0.00013474,2]
[368699756,1751308233959,-150.0,0.00013475,2]
[368699757,1751308233968,-150.0,0.00013483,2]
[368699758,1751308233979,-150.0,0.00013486,2]
[368699759,1751308233988,-150.0,0.00013489,2]
[368699760,1751308233998,-150.0,0.0001349,2]
[368699761,1751308234007,-8497.2272782,0.00013491,2]
[368699762,1751308234017,-460.7211381,0.00013491,2]
[368699763,1751308234026,-20262.112,0.00013491,2]
[368699764,1751308234037,-6473.3710836,0.00013491,2]
[368699765,1751308234551,-10570.64432835,0.00013491,2]
[368699779,1751308238197,-150.0,0.00013278,2]
[368699781,1751308238206,-3277.83158795,0.00013491,2]
[368699783,1751308238217,-8576.99594588,0.000135,2]
[368699785,1751308238228,-9077.47904078,0.000135,2]
[368699789,1751308238280,-847.47960045,0.000135,2]
[368699790,1751308238294,-620.4344832,0.000135,2]
[368699983,1751308240197,-4976.31,0.000135,2]
[368700265,1751308243190,-651.0,0.000135,2]
[368700270,1751308243336,-673.57615397,0.000135,2]
[368700285,1751308243491,-13079.71665,0.000135,2]
[368700451,1751308246463,-3460.50659902,0.000135,2]
[368700452,1751308246474,-3791.60021836,0.000135,2]
[368700460,1751308289487,205.0,0.0001217,2]
[368700461,1751308299290,2616.1,0.00012743,2]
[368700462,1751308450740,200.0,0.00012568,7]
[368700463,1751308459800,1000.0,0.00012594,2]
[368700464,1751308569896,150.0,0.00012502,2]
[368700465,1751308654329,168.57,9.976e-05,2]
[368700467,1751308690931,568.84,0.00012459,2]
[368700470,1751308836745,-6571.92156556,0.000138,4]
[368700471,1751308836922,-1000.0,0.00014502,4]
[368700472,1751308837236,-152.0,0.00016393,5]
[368700473,1751308837262,-1619.10843444,0.000167,5]
[368700474,1751308837370,-3889.89156556,0.000167,5]
[368700475,1751308837392,-152.0,0.00016708,6]
[368700476,1751308837421,-500.0,0.00017001,7]
[368700477,1751308837443,-547.97,0.00017001,7]
[368700478,1751308837468,-152.0,0.00017023,7]
[368700479,1751308837785,-152.0,0.00017338,8]
[368700480,1751308837809,-48.0,0.00017653,9]
[368700481,1751308839404,-900.0,0.00014502,4]
[368700482,1751308897945,267.13843444,0.000165,5]
[368700483,1751308901239,2857.83,0.00012353,2]
[368700484,1751308908752,154.44,0.00012355,2]
[368700488,1751309170084,306.33444269,0.00017096,30]
[368700489,1751309170112,306.33444269,0.00017178,30]
[368700490,1751309170236,306.33444269,0.00017233,30]
[368700491,1751309170341,306.33444269,0.00017315,30]
[368700492,1751309170464,306.33444269,0.0001737,30]
[368700493,1751309170586,306.33444269,0.00017452,30]
[368700494,1751309170867,306.33444269,0.00017507,30]
[368700495,1751309171591,306.33444269,0.00017589,30]
[368700496,1751309171681,306.33444269,0.00017644,30]
[368700497,1751309171780,306.33444269,0.00017726,30]
[368700498,1751309171886,306.33444269,0.00017781,30]
[368700499,1751309171958,306.33444269,0.00017863,30]
[368700500,1751309204158,2384.0,0.00027397,120]
[368700553,1751309326329,5000.0,0.00012348,2]
[368700622,1751309384626,150.0,0.00012348,2]
[368700623,1751309389022,150.0,0.00012348,2]
[368700633,1751309432140,-250.0,0.00013193,2]
[368700634,1751309432151,-150.0,0.00013199,2]
[368700635,1751309432161,-150.0,0.000132,2]
[368700636,1751309432171,-148.98060874,0.00013201,2]
[368700637,1751309432223,-1.01939126,0.00013201,2]
[368700638,1751309432234,-150.0,0.00013202,2]
[368700639,1751309432244,-150.0,0.00013203,2]
[368700640,1751309432258,-150.0,0.00013203,2]
[368700641,1751309432268,-150.0,0.00013204,2]
[368700642,1751309432277,-150.0,0.00013206,2]
[368700643,1751309432287,-119.98060874,0.00013206,2]
[368700644,1751309432299,-180.01939126,0.00013206,2]
[368700645,1751309432308,-406.09486144,0.00013206,2]
[368700646,1751309432320,-793.90513856,0.00013206,2]
[368700647,1751309432330,-4847.23261242,0.00013207,2]
[368700648,1751309432366,-2065.40938758,0.00013207,2]
[368700649,1751309432376,-207.4,0.00013207,2]
[368700650,1751309432385,-300.0,0.00013207,2]
[368700651,1751309432395,-151.0,0.00013207,2]
[368700652,1751309432405,-300.0,0.00013207,2]
[368700653,1751309432415,-300.0,0.00013207,2]
[368700654,1751309432424,-300.0,0.00013207,2]
[368700655,1751309432434,-300.0,0.00013207,2]
[368700656,1751309432443,-300.0,0.00013207,2]
[368700657,1751309432453,-300.0,0.00013207,2]
[368700658,1751309432462,-500.0,0.00013207,2]
[368700659,1751309432471,-500.0,0.00013207,2]
[368700660,1751309432481,-500.0,0.00013207,2]
[368700661,1751309432490,-300.0,0.00013207,2]
[368700662,1751309432500,-300.0,0.00013207,2]
[368700663,1751309432509,-300.0,0.00013207,2]
[368700664,1751309432519,-322.63613301,0.00013207,2]
[368700665,1751309432529,-151.0,0.00013207,2]
[368700666,1751309432539,-151.0,0.00013207,2]
[368700667,1751309432548,-151.0,0.00013207,2]
[368700668,1751309432557,-151.0,0.00013207,2]
[368700669,1751309432567,-151.0,0.00013207,2]
[368700670,1751309432577,-151.0,0.00013207,2]
[368700671,1751309432586,-300.0,0.00013207,2]
[368700672,1751309432596,-742.27332369,0.0001321,2]
[368700673,1751309432606,-150.0,0.00013215,2]
[368700674,1751309432616,-628.28,0.00013215,2]
[368700675,1751309432625,-150.99,0.00013215,2]
[368700676,1751309432634,-1035.03416352,0.00013215,2]
[368700677,1751309432687,-1368.0,0.00013215,2]
[368700678,1751309432699,-2809.08583648,0.00013215,2]
[368700679,1751309432709,-150.0,0.00013216,2]
[368700680,1751309432719,-150.0,0.00013219,2]
[368700681,1751309432729,-150.0,0.0001322,2]
[368700682,1751309432740,-150.0,0.00013221,2]
[368700683,1751309432750,-150.0,0.00013226,2]
[368700684,1751309432759,-150.0,0.00013227,2]
[368700685,1751309432769,-150.0,0.00013231,2]
[368700686,1751309432779,-150.0,0.00013231,2]
[368700687,1751309432789,-150.0,0.00013236,2]
[368700688,1751309432799,-150.0,0.00013242,2]
[368700689,1751309432808,-150.0,0.00013249,2]
[368700690,1751309432817,-150.0,0.00013255,2]
[368700691,1751309432827,-7168.409754,0.00013262,2]
[368700692,1751309432837,-150.0,0.00013272,2]
[368700693,1751309432847,-150.0,0.00013279,2]
[368700694,1751309432858,-150.0,0.00013282,2]
[368700695,1751309432868,-150.0,0.00013282,2]
[368700696,1751309432878,-150.0,0.00013283,2]
[368700697,1751309432887,-150.0,0.00013283,2]
[368700698,1751309432896,-150.0,0.00013293,2]
[368700699,1751309432906,-150.0,0.00013294,2]
[368700700,1751309432916,-150.0,0.00013302,2]
[368700701,1751309432926,-150.0,0.00013303,2]
[368700702,1751309432935,-36.26740766,0.00013317,2]
[368700703,1751309432972,-113.73259234,0.00013317,2]
[368700704,1751309432982,-532.54441975,0.00013317,2]
[368700705,1751309432995,-6901.09649515,0.00013317,2]
[368700706,1751309433004,-150.0,0.00013318,2]
[368700707,1751309433014,-150.0,0.00013327,2]
[368700708,1751309433027,-150.0,0.00013328,2]
[368700709,1751309433037,-150.0,0.00013331,2]
[368700710,1751309433047,-150.0,0.00013336,2]
[368700711,1751309433056,-150.0,0.00013337,2]
[368700712,1751309433067,-487.0,0.00013337,2]
[368700713,1751309433077,-500.0,0.00013337,2]
[368700714,1751309433087,-150.0,0.00013337,2]
[368700715,1751309433099,-500.0,0.00013337,2]
[368700716,1751309433108,-150.0,0.00013337,2]
[368700717,1751309433118,-500.0,0.00013337,2]
[368700718,1751309433127,-150.0,0.00013337,2]
[368700719,1751309433137,-500.0,0.00013337,2]
[368700720,1751309433147,-500.0,0.00013337,2]
[368700721,1751309433157,-500.0,0.00013337,2]
[368700722,1751309433168,-150.0,0.00013337,2]
[368700723,1751309433179,-150.0,0.00013337,2]
[368700724,1751309433189,-150.0,0.00013337,2]
[368700725,1751309433199,-1660.23278,0.0001336,2]
[368700726,1751309433210,-150.0,0.00013362,2]
[368700727,1751309433220,-150.0,0.00013372,2]
[368700728,1751309433230,-150.0,0.00013372,2]
[368700729,1751309433240,-150.0,0.00013372,2]
[368700730,1751309433250,-7708.68562875,0.00013372,2]
[368700731,1751309433259,-150.0,0.00013373,2]
[368700732,1751309433270,-150.0,0.00013373,2]
[368700733,1751309433280,-150.0,0.0001338,2]
[368700734,1751309433290,-150.0,0.00013384,2]
[368700735,1751309433300,-150.0,0.0001339,2]
[368700736,1751309433309,-622.2869,0.00013391,2]
[368700737,1751309433320,-150.0,0.00013392,2]
[368700738,1751309433331,-200.0,0.00013392,2]
[368700739,1751309433341,-9970.78890012,0.000134,2]
[368700753,1751309438126,-10554.94849988,0.000134,2]
[368700754,1751309438136,-1000.0,0.000134,2]
[368700755,1751309438146,-222.09,0.000134,2]
[368700756,1751309438155,-868.33833709,0.000134,2]
[368700757,1751309438164,-2500.0,0.000134,2]
[368700758,1751309438174,-166.85435197,0.000134,2]
[368700759,1751309438183,-150.0,0.00013406,2]
[368700760,1751309438193,-150.0,0.00013408,2]
[368700761,1751309438203,-150.0,0.00013412,2]
[368700762,1751309438212,-150.0,0.00013419,2]
[368700763,1751309438222,-150.0,0.00013427,2]
[368700764,1751309438231,-7993.90699701,0.00013427,2]